Cogmind - Beta 15 @@@ ROGUE MODE // 2025.06.19 @ 15:21:07 Player: Ev Result: Destroyed by P-60 Hacker with Shock Rifle Performance ------------- Evolutions (3) 1500 Regions Visited (4) 800 Robots Destroyed (119) 595 Value Destroyed (2989) 2989 Prototype IDs (17) 340 Alien Tech Used (0) 0 Bonus (54) 54 TOTAL SCORE: 6278 Bonus ------- High Alert Combat Kills 54 Cogmind --------- Core Integrity 0/700 Matter 295/300 Energy 300/300 System Corruption 4% Temperature Warm (165) Movement Core (200) Ox3 Location -7/Factory Parts ------- > --- POWER (1) -------- Enhanced Nuclear Core > --- PROPULSION (4) --- (None) > --- UTILITY (6) ------ Visual Processing Unit Improved Signal Interpreter > --- WEAPON (2) ------- Particle Gun > --- INVENTORY (5) ---- System Restoration Module Peak State ------------ > --- POWER ------------ Heavy Ion Engine > --- PROPULSION ------- Airjet Airjet Airjet Airjet > --- UTILITY ---------- Cryofiber Web Improved Heat Sink Visual Processing Unit Improved Signal Interpreter Energy Filter Hardened Light Armor Plating > --- WEAPON ----------- Ion Cannon Ion Cannon > --- INVENTORY -------- Deuterium Engine Heat Sink Ion Cannon Ion Cannon [Rating: 39] Favorites ----------- Power Ion Engine Engine Ion Engine Power Core Enhanced Nuclear Core Propulsion Airjet Treads Light Treads Leg Aluminum Leg Hover Unit Airjet Flight Unit Flight Unit Utility Heat Sink Device Heat Sink Storage Medium Storage Unit Processor Visual Processing Unit Protection Hardened Light Armor Plating Weapon Improved Medium Laser Energy Gun Improved Medium Laser Energy Cannon Ion Cannon Ballistic Gun Assault Rifle Ballistic Cannon Light Cannon Launcher Grenade Launcher Build | -11 -10 -9 -8 -7 ------- Run | Yrd Mat Mat Mat Fac Slots Evolved 6 | . . 2 2 2 Power . | . . . . . Propulsion 2 | . . 1 . 1 Utility 4 | . . 1 2 1 Weapon . | . . . . . Parts Attached 70 | 6 12 31 3 18 Power 10 | 1 2 2 . 5 Engine 7 | 1 2 2 . 2 Core 3 | . . . . 3 Reactor . | . . . . . Propulsion 24 | 2 4 15 . 3 Treads 10 | 2 4 3 . 1 Leg 3 | . . 1 . 2 Wheel . | . . . . . Hover 4 | . . 4 . . Flight 7 | . . 7 . . Utility 17 | 1 3 7 2 4 Device 7 | . 1 2 1 3 Storage 3 | 1 2 . . . Processor 2 | . . 1 1 . Hackware . | . . . . . Protection 5 | . . 4 . 1 Artifact . | . . . . . Weapon 19 | 2 3 7 1 6 Energy Gun 7 | 1 . 4 . 2 Energy Cannon 6 | . . 1 1 4 Ballistic Gun 3 | 1 1 1 . . Ballistic Cannon 2 | . 1 1 . . Launcher 1 | . 1 . . . Special Weapon . | . . . . . Impact Weapon . | . . . . . Slashing Weapon . | . . . . . Piercing Weapon . | . . . . . Special Melee Weapon . | . . . . . Unidentified Prototypes 3 | . . 1 . 2 Parts Lost 21 | . . 3 . 18 Power 4 | . . 1 . 3 Propulsion 5 | . . 1 . 4 Utility 7 | . . 1 . 6 Weapon 5 | . . . . 5 Highest Loss Streak 10 | . . 2 . 10 To Critical Strikes . | . . . . . Average Backups 4 | . 4 3 3 3 Power . | . . . . . Propulsion . | . 1 . 1 . Utility . | . . . . 1 Weapon 2 | . 2 1 2 1 Tool/Special . | . . . . . Unused Backups 8 | . 3 3 . 2 Power 2 | . . 1 . 1 Propulsion 1 | . . 1 . . Utility 3 | . 1 1 . 1 Weapon 2 | . 2 . . . Tool/Special . | . . . . . Average Slot Usage (%) 93 | . 96 96 95 79 Engine 11 | . 14 10 9 5 Treads 12 | . 27 3 . . Hover 10 | . . 18 25 15 Flight 3 | . . 10 . . Device 11 | . 3 16 18 17 Storage 9 | . 20 . . . Processor 5 | . . 4 15 15 Protection 4 | . . 10 9 4 Energy Gun 7 | . 1 19 13 . Energy Cannon 2 | . . . 4 13 Ballistic Gun 1 | . 4 . . . Ballistic Cannon 5 | . 11 1 . . Launcher 4 | . 10 . . . Peak Build Rating 39 | 6 9 25 30 39 Average Rating 16 | 3 7 19 27 29 On Entrance 13 | . 6 9 24 30 Naked Turns . | . . . . . Heaviest Build 30 | 14 23 22 23 30 Greatest Support 75 | 40 40 75 30 32 Greatest Overweight (x) 7 | . . 2 . 7 Average Overweight (x) . | . . . . . Largest Inventory Capacity 10 | 8 10 10 5 5 Average Capacity 6 | 6 9 5 5 5 Most Carried 10 | 4 10 10 5 5 Average Carried 4 | . 5 3 3 3 Final Capacity 10 | 8 10 5 5 5 Final Carried 10 | . 10 4 5 1 Class Distribution -------------------- 87% | Mutant 12% | Scavenger-Mutant Dominant Class ---------------- Mutant | -10/Materials Mutant | -9/Materials Mutant | -8/Materials Mutant | -7/Factory Resources | -11 -10 -9 -8 -7 ----------- Run | Yrd Mat Mat Mat Fac Matter Collected 1377 | 252 501 370 67 187 Remotely . | . . . . . Salvage Created 4477 | . 602 1525 286 2064 Parts 238 | . 32 101 18 87 Haulers Intercepted 10 | . 2 6 . 2 Recyclers Shooed 4 | . . . . 4 Parts Field Recycled . | . . . . . Retrieved Matter . | . . . . . Parts Self-Destructed . | . . . . . Prevented . | . . . . . Kills | -11 -10 -9 -8 -7 ------- Run | Yrd Mat Mat Mat Fac Combat Hostiles Destroyed 84 | . 14 32 10 28 Guns 46 | . 5 30 6 5 Cannons 33 | . 6 1 4 22 AOE 3 | . 3 . . . Classes Destroyed 12 | . 6 4 . 2 Worker 2 | . . 1 . 1 Builder 1 | . 1 . . . Hauler 10 | . 2 6 . 2 Recycler 10 | . 2 . . 8 Operator 4 | . . 2 1 1 Watcher 8 | . 3 4 . 1 Swarmer 32 | . 6 12 7 7 Grunt 35 | . 8 12 . 15 Brawler 1 | . . . . 1 Duelist 2 | . . 1 . 1 Sentry 12 | . . 7 3 2 Programmer 2 | . . . . 2 Best Kill Streak 11 | . 4 7 5 11 Combat Bots Only 9 | . 3 6 4 9 Max Kills in Single Turn 2 | . 2 2 2 1 Gunslinging 1 | . 1 . . . Exploded 1 | . 1 . . . Melee . | . . . . . Uniques/NPCs Destroyed . | . . . . . Combat | -11 -10 -9 -8 -7 -------- Run | Yrd Mat Mat Mat Fac Hostile Shots Fired 438 | . 54 105 38 241 Missed 143 | . 12 40 13 78 Hits 295 | . 42 65 25 163 Melee 4 | . . . . 4 Projectile 291 | . 42 65 25 159 Critical Strikes 12 | . 2 1 1 8 Damage Taken 3906 | . 472 768 225 2441 Core 1052 | . 130 188 30 704 Absorbed by Shields 37 | . 37 . . . Regen/Repaired (Parts) 226 | . 82 98 46 . Core Remaining (%) 73 | 100 48 53 94 . Volleys Fired 283 | . 51 92 28 112 Largest 2 | . 2 2 2 2 Hottest 136 | . 70 124 136 130 Shots Fired 502 | . 70 177 56 199 Gun 267 | . 32 173 34 28 Cannon 225 | . 28 4 22 171 Launcher 10 | . 10 . . . Special . | . . . . . Kinetic 45 | . 45 . . . Thermal 447 | . 15 177 56 199 Explosive 10 | . 10 . . . Electromagnetic . | . . . . . Robot Hit Streak 20 | . 10 13 5 20 Robot Miss Streak 4 | . 4 4 3 3 Penetration Max . | . . . . . Secondary Targets 3 | . 1 2 . . Max Gunslinging Chain 1 | . 1 1 . . Shots Hit Robots 321 | . 43 114 26 138 Core Hits 156 | . 29 51 15 61 Critical Kills . | . . . . . Critical Parts Destroyed . | . . . . . Critical Strikes 13 | . 4 7 . 2 Burn 10 | . 1 7 . 2 Blast 3 | . 3 . . . Melee Attacks . | . . . . . Impact . | . . . . . Slashing . | . . . . . Piercing . | . . . . . Sneak Attacks . | . . . . . Combat Hostiles . | . . . . . Follow-up Attacks . | . . . . . Damage Inflicted 7050 | . 1060 1997 493 3500 Guns 2990 | . 293 1915 308 474 Cannons 3626 | . 337 82 185 3022 Explosions 430 | . 430 . . . Melee . | . . . . . Ramming 4 | . . . . 4 Kinetic 478 | . 478 . . . Thermal 6138 | . 152 1997 493 3496 Explosive 430 | . 430 . . . Electromagnetic . | . . . . . Impact . | . . . . . Slashing . | . . . . . Piercing . | . . . . . Highest Corruption 4 | . 1 . . 4 Average Corruption 1 | . 1 . . 2 Corruption Purged . | . . . . . Corruption Blocked . | . . . . . Effects 7 | . 5 . . 2 Message Errors 4 | . 3 . . 1 Heat Flow Errors 1 | . 1 . . . Data Loss (minor) 2 | . 1 . . 1 Overload Shots . | . . . . . Overflow Damage 60 | . . 1 1 58 Projectiles 60 | . . 1 1 58 Explosions . | . . . . . Melee . | . . . . . Knockbacks 3 | . 3 . . . Impact . | . . . . . Kinetic 3 | . 3 . . . Secondary . | . . . . . Self-Inflicted Damage 28 | . 28 . . . Shots 1 | . 1 . . . Rammed 3 | . . . . 3 Targets Rammed 3 | . . . . 3 Kicked . | . . . . . Crushed . | . . . . . Highest Temperature 502 | . 201 338 210 502 Average Temperature 117 | . 80 100 84 275 Received Heat Transfer 1482 | . 174 270 18 1020 Effects 16 | . . 8 . 8 Shutdowns 2 | . . . . 2 Energy Bleed 3 | . . 1 . 2 Interference 8 | . . 6 . 2 Matter Decay 1 | . . . . 1 Short Circuit 1 | . . 1 . . Damage (minor) 1 | . . . . 1 Siege Activations . | . . . . . Martial Activations . | . . . . . Shielding Activations . | . . . . . Robots Disrupted . | . . . . . Combat Hostiles . | . . . . . Robots Corrupted . | . . . . . Combat Hostiles . | . . . . . Parts Fried . | . . . . . Impact Corruptions . | . . . . . Robots Melted 2 | . . 1 . 1 Combat Hostiles 2 | . . 1 . 1 Parts Melted 28 | . 2 12 2 12 Heat Transferred 12062 | . 518 4810 999 5735 Parts Sabotaged . | . . . . . Parts Stolen . | . . . . . Parts Stripped . | . . . . . Power Chain Reactions . | . . . . . Alert | -11 -10 -9 -8 -7 ------- Run | Yrd Mat Mat Mat Fac Maximum Alert Level 2 | . . 2 1 1 Low Security (%) 69 | 100 100 61 15 34 Level 1 23 | . . 16 84 65 Level 2 6 | . . 22 . . Level 3 . | . . . . . Level 4 . | . . . . . Level 5 . | . . . . . High Security . | . . . . . Max Security . | . . . . . Peak Influence 496 | . 117 496 303 396 Initial 207 | . . 30 207 93 Average 144 | . 47 210 236 237 Influence Increases 2610 | . 530 962 339 779 Destroy 0b10 Robot/C 1680 | . 280 640 200 560 Destroy 0b10 Robot/NC 175 | . 40 65 5 65 Destroy Leader 406 | . 80 170 50 106 Successful Hack 113 | . 24 37 38 14 Select Force Hacks 30 | . 30 . . . Disable Machine 30 | . 15 15 . . Destroy Structure 71 | . 61 5 1 4 Lose Combat Pursuer 105 | . . 30 45 30 Influence Decreases 2268 | . 457 543 625 643 Entered New Map 441 | . . 43 285 113 Time Decay 1467 | . 457 470 190 350 Lost Part 210 | . . 30 . 180 Purge Threat 150 | . . . 150 . Squads Dispatched 17 | . 3 5 . 9 Investigation 5 | . 2 3 . . Extermination 2 | . . . . 2 Reinforcement 5 | . 1 2 . 2 Assault . | . . . . . Garrison 5 | . . . . 5 Intercept . | . . . . . Searches Triggered . | . . . . . Construction Impeded . | . . . . . Haulers Reinforced 1 | . . . . 1 Active Scanning Responses . | . . . . . Cargo Convoy Interrupts . | . . . . . Stealth | -11 -10 -9 -8 -7 --------- Run | Yrd Mat Mat Mat Fac Distress Signals 6 | . . 1 3 2 Communications Jammed . | . . . . . Distress Signals . | . . . . . Times Spotted 117 | . 19 40 21 37 Peak Tracking Total 7 | . 3 7 5 5 Tactical Retreats 4 | . . 1 2 1 Traps | -11 -10 -9 -8 -7 ------- Run | Yrd Mat Mat Mat Fac Traps Triggered 7 | . 5 2 . . Indirectly . | . . . . . Trap Hack Attempts . | . . . . . Triggered . | . . . . . Disarmed . | . . . . . Reprogrammed . | . . . . . Reused . | . . . . . Traps Extracted . | . . . . . Installed . | . . . . . Triggered . | . . . . . Machines | -11 -10 -9 -8 -7 ---------- Run | Yrd Mat Mat Mat Fac Machines Disabled 2 | . 1 1 . . Max in Single Turn 1 | . 1 1 . . Garrison Access 1 | . . . . 1 Machines Repaired . | . . . . . Machines Dismantled . | . . . . . Machines Sabotaged . | . . . . . Overloaded Fab Kills . | . . . . . Hacking | -11 -10 -9 -8 -7 --------- Run | Yrd Mat Mat Mat Fac Machines Accessed 25 | . 10 7 6 2 Terminals 17 | . 7 4 5 1 Fabricators . | . . . . . Repair Stations 4 | . 1 2 1 . Recycling Units 3 | . 2 1 . . Scanalyzers . | . . . . . Garrison Access 1 | . . . . 1 Total Hacks 76 | . 30 22 21 3 Successful 49 | . 16 14 17 2 Failed 27 | . 14 8 4 1 Catastrophic 7 | . 5 1 . 1 Database Lockouts . | . . . . . Manual 36 | . 20 5 10 1 Terminals 52 | . 23 11 16 2 Fabricators . | . . . . . Repair Stations 19 | . 4 10 5 . Recycling Units 4 | . 3 1 . . Scanalyzers . | . . . . . Garrison Access 1 | . . . . 1 Terminal Hacks 18 | . 5 4 8 1 Prototype ID Bank 7 | . 2 2 2 1 Alert Level 3 | . 1 . 2 . Unreport Threat 1 | . . . 1 . Locate Traps 3 | . 1 1 1 . Hauler Manifests 1 | . 1 . . . Zone Layout 3 | . . 1 2 . Fabricator Hacks . | . . . . . Repair Station Hacks 16 | . 4 8 4 . Scan Component 8 | . 2 4 2 . Repair 8 | . 2 4 2 . Recycling Unit Hacks 3 | . 2 1 . . Report Inventory 2 | . 1 1 . . Retrieve Components 1 | . 1 . . . Scanalyzer . | . . . . . Garrison Access Hacks 1 | . . . . 1 Seal Access 1 | . . . . 1 Unauthorized Hacks 11 | . 5 1 5 . Terminals 10 | . 4 1 5 . Track 2 | . 1 . 1 . Botnet 5 | . 2 . 3 . Operators 3 | . 1 1 1 . Fabricators . | . . . . . Repair Stations . | . . . . . Recycling Units 1 | . 1 . . . Tunnel 1 | . 1 . . . Scanalyzers . | . . . . . Garrison Access . | . . . . . Data Cores Recovered 1 | . . . 1 . Used . | . . . . . Hacking Detections 21 | . 8 6 6 1 Full Trace Events 1 | . . 1 . . Feedback Events . | . . . . . Feedback Blocked . | . . . . . Robot Schematics Acquired . | . . . . . Robots Built . | . . . . . Authchips . | . . . . . Time . | . . . . . Total Robot Build Rating . | . . . . . Part Schematics Acquired . | . . . . . Parts Built . | . . . . . Authchips . | . . . . . Time . | . . . . . Total Part Build Rating . | . . . . . Parts Repaired 8 | . 2 4 2 . Time 275 | . 52 147 76 . Parts Recycled . | . . . . . Recycled Matter . | . . . . . Retrieved Matter . | . . . . . Retrieved Components 9 | . 9 . . . Parts Scanalyzed . | . . . . . Part Schematics Acquired . | . . . . . Parts Damaged . | . . . . . Bothacking | -11 -10 -9 -8 -7 ------------ Run | Yrd Mat Mat Mat Fac Used RIF Installer . | . . . . . Robots Hacked . | . . . . . Non-combat . | . . . . . Combat . | . . . . . Robot Hacks Applied . | . . . . . Relay Couplers Released . | . . . . . Fabnet Peak Effective % . | . . . . . Robots Rewired . | . . . . . Allies Hacked . | . . . . . Hacks Repelled . | . . . . . Allies | -11 -10 -9 -8 -7 -------- Run | Yrd Mat Mat Mat Fac Total Allies . | . . . . . Largest Group . | . . . . . Highest-Rated Group . | . . . . . Highest-Rated Ally . | . . . . . Total Orders . | . . . . . Ally Attacks . | . . . . . Total Damage . | . . . . . Kills . | . . . . . Allies Corrupted . | . . . . . Allies Melted . | . . . . . Intel | -11 -10 -9 -8 -7 ------- Run | Yrd Mat Mat Mat Fac Active Infowar (turns) 1686 | . . 556 396 734 Optics 1686 | . . 556 396 734 Robot Analysis Total . | . . . . . Derelict Logs Recovered . | . . . . . Drone Launches . | . . . . . Drone Recoveries . | . . . . . Exploration | -11 -10 -9 -8 -7 ------------- Run | Yrd Mat Mat Mat Fac Turns Passed 4423 | 68 1885 1286 396 788 Spaces Moved 2699 | 44 988 892 312 463 Core 21 | 12 . . . 9 Treads 1078 | 32 988 51 . 7 Legs 67 | . . 8 . 59 Wheels . | . . . . . Hover 1270 | . . 570 312 388 Flight 263 | . . 263 . . Fastest Speed 34 | 50 160 34 52 48 Average Speed 97 | 130 160 55 52 71 Slowest Speed 400 | 160 160 200 52 400 Overloaded Moves . | . . . . . Propulsion Burnouts . | . . . . . Robots Hopped 1 | . . 1 . . Potential Cave-ins . | . . . . . Cave-ins Triggered . | . . . . . Exploration Rate (%) 42 | 3 98 69 27 13 Regions Visited 4 Branch Regions . Pre-discovered Areas 1 | . 1 . . . Known Exits Taken 1 | . . . 1 . Unknown Exits Taken 3 | 1 1 1 . . Scrap Searched . | . . . . . Spaces Dug . | . . . . . Terrain Destroyed 60 | . 60 . . . Melee . | . . . . . Projectile . | . . . . . AOE 60 | . 60 . . . Terrain Rammed . | . . . . . Walls Destroyed . | . . . . . Machines Disabled . | . . . . . Actions | -11 -10 -9 -8 -7 --------- Run | Yrd Mat Mat Mat Fac Total 4004 | 55 1223 1515 488 723 Wait 781 | . 114 435 135 97 Move 2693 | 43 987 889 311 463 Hop 1 | . . 1 . . Pick Up 93 | 6 34 30 6 17 Fast Attach 4 | . . 2 . 2 Attach 54 | 6 10 21 4 13 Detach 2 | . . 2 . . Swap 35 | . 13 15 3 4 Drop 55 | . 14 28 1 12 Fire 283 | . 51 92 28 112 Melee . | . . . . . Ram . | . . . . . Kick . | . . . . . Crush 3 | . . . . 3 Escape Stasis . | . . . . . Rewire . | . . . . . Trap . | . . . . . Miscellaneous . | . . . . . Route ------- -11/Scrapyard -10/Materials (discovered 5 exits: *Mat x3 / [*Min x2]) -9/Materials (discovered 2 exits: *Mat / [*Min]) -8/Materials -7/Factory History --------- Turn | Location | Event 4 | -11/Scrapyard | Discovered new exit (range 16) 69 | -11/Scrapyard | Entered Materials 303 | -10/Materials | Discovered new exit (range 13) 311 | -10/Materials | Build established: Mutant 631 | -10/Materials | Discovered new exit (range 12) 756 | -10/Materials | Discovered new exit (range 12) 793 | -10/Materials | Discovered new exit (range 16) 1030 | -10/Materials | Discovered new exit (range 16) 1259 | -10/Materials | Repaired Lgt. Cannon 1287 | -10/Materials | Repaired Grenade Launcher 1632 | -10/Materials | Core integrity fell below 50% 1954 | -10/Materials | Entered another Materials area 1954 | -9/Materials | Evolved 2 slots: Propulsion x1, Utility x1 2415 | -9/Materials | Repaired Weight Redist. System 2443 | -9/Materials | Repaired Heat Sink 2724 | -9/Materials | Discovered new exit (range 17) 3100 | -9/Materials | Discovered new exit (range 3) 3173 | -9/Materials | Repaired Imp. Medium Laser 3213 | -9/Materials | Repaired Airjet 3240 | -9/Materials | Entered another Materials area 3240 | -8/Materials | Evolved 2 slots: Utility x2 3400 | -8/Materials | Repaired Airjet 3440 | -8/Materials | Repaired Airjet 3610 | -8/Materials | Discovered new exit (range 13) 3636 | -8/Materials | Identified exit to Factory 3636 | -8/Materials | Entered Factory 3636 | -7/Factory | Evolved 2 slots: Propulsion x1, Utility x1 3940 | -7/Factory | Destroyed 9 combat bots 3959 | -7/Factory | Garrison activated, responded to threat 4157 | -7/Factory | Lost 3 parts (1p1u1w) 4266 | -7/Factory | Garrison activated, responded to threat 4358 | -7/Factory | Core integrity fell below 50% 4368 | -7/Factory | Lost 10 parts (1p2n4u3w) 4394 | -7/Factory | Core integrity fell below 20% 4424 | -7/Factory | Destroyed by P-60 Hacker with Shock Rifle Last Messages --------------- 04405_ Slammed into P-60 Hacker. 04406_ R-06 Scavenger collects Imp. Heat Sink. 04406_ Slammed into P-60 Hacker. 04407_ Critical hit (Burn: +37). 04408_ K-01 Serf collects debris. 04408_ Slammed into P-60 Hacker. 04409_ R-06 Scavenger collects Airjet. 04410_ R-06 Scavenger collects Mace. 04411_ Acquired Particle Gun. 04412_ KDR6P PLOXWK2KORM6E 04418_ R-06 Scavenger collects Shock Rifle. 04419_ K-01 Serf collects debris. 04420_ Critical hit (Burn: +37). 04421_ K-01 Serf destroyed. 04421_ R-06 Scavenger collects Mic. Nuclear Core. 04422_ K-01 Serf collects debris. Map ----- +----------------------------------------------------+ | ??????????????????????????#""" "F"=""" ######### | | ??????????????????????????#"G "!!!%*[ | | ??????????????????????????#""" """ %%* | | ??????????????????????????#### """ *![ | | ?????????????????????????????# % !![= | | ?????????????????????????????# !![[%= | | ?????????????????????????????# ############### | | ?????????????????????????????# # #???? | | ????????????????############## # ^ #???? | | ????????????????# """ + + #???? | | ????????????????# "T" """ # # """"""" #???? | | ????????????????# " " """ ! # # """""""?????? | | ????????????????# """ # # """"""??????? | | ????????????????# ! # # """""???????? | | ?#??????????????############## # ???????? | | ?# ????????????????? # ########??????? | | ?# ???????????? """""" # ##############? | | ?# ??????????# """""" #% # = #? | | ?# ?????????# """""" # # #? | | ?# ????????# """""" #% + #? | | ?# ???##### #= % # #? | | ## ####T #############+###% # """ """ #? | | =% % uu!!=%% % *!%=%g%k # """ """ #? | | = r =*!!=! k=%==r% g + """ """ ???? | | % %%!%!%= %!*p=% % = # ???? | | ! *=*=]!* a| @% *%!%! # """ """ ????? | | %[ % =%u! u = % * # """ """ ????? | | ###########+##################% # ""? "???????? | | ???#!!! = #????????# / # ???????????? | | ???#!!! """ """ """ #????????# ###???????????? | | ???#!!! """ """ """ #????????# #?????????????? | | ???# """ """ """ ?????????# #?????????????? | | ???# ?????????# #?????????????? | | ???# ! """ """ """ ?????????# #?????????????? | | ???# """ """ """ ?????????#% #?????????????? | | ???# """ """ ""???????????# #?????????????? | | ???# ? ???????????# #?????????????? | | ????#????#####???????????????# +?????????????? | | ?????????????????????????????# #?????????????? | | ?????????????????????????????# #?????????????? | | ?????????????????????????????# #?????????????? | | ?????????????????????????????# #?????????????? | | ?????????????????????????????# #?????????????? | | ?????????????????????????????# #?????????????? | | ?????????????????????????????# ?????????????? | | ?????????????????????????????# ????????????? | | ?????????????????????????????# ????????????? | | ????????????????????????????? ###???????????? | | ?????????????????????????????###+###?????????????? | | ?????????????????????????????????????????????????? | +----------------------------------------------------+ Best States ------------- Heat Dissipation 62 Energy Generation 17 Energy Capacity 300 Matter Stores 350 Matter Capacity 350 Sight Range 18 Terrain Scan Density 10 Additional Mass Support 6 Base Temperature (-) 100 Armor Coverage 225 Evasion (%) 63 Recoil Reduction 3 Energy Filtering 30 Item Schematics ----------------- None Robot Schematics ------------------ None Fabricated ------------ Nothing Repaired ---------- Lgt. Cannon | 47% | -10/Materials Grenade Launcher | 68% | -10/Materials Weight Redist. System | 59% | -9/Materials Heat Sink | 63% | -9/Materials Imp. Medium Laser | 38% | -9/Materials Airjet | 42% | -9/Materials Airjet | 35% | -8/Materials Airjet | 50% | -8/Materials Alien Tech Used ----------------- None Achievements -------------- None Challenges ------------ None Game ------ Seed SlugCompactGravjet Manual? 0 Play Time 00:51:49 Cumulative 55.3 hours Start 2025.06.16 @ 11:12:44 End 2025.06.19 @ 15:21:07 Sessions 7 Manual Loads 0 Difficulty Rogue Special Mode None Game No. 111 Rogue 111 Adventurer 0 Explorer 0 Win Type - Total 0 Types 0/0/0/0/0/0/0/0/0/0 Lore% 16 Gallery% 29 Achievement% 24 Wizard Run 0 Options --------- Layout 0 ASCII 0 Keyboard 0 Movement Mouse Keybinds 0 Fullscreen 1 Font 24/Smallcaps Map View 76x50 Zoom Use 0% Tactical HUD 1 Map Filters NONE Filters NONE Steam 1 RUN: 040a65c9-66f3-4f03-a5f5-11d90c10db9d